bitfinex/quotes_SOLUSD_20240616
["timestamp","ask_amount","ask_price","bid_price","bid_amount"]
[1718548288277,0.68,146.38,146.37,7.5833]
[1718548288477,0.68,146.38,146.37,2.5277]
[1718548288778,0.68,146.38,146.37,15.1668]
[1718548288995,0.68,146.38,146.37,2.5277]
[1718548289473,3.2077,146.38,146.35,13.0743]
[1718548289678,8.263,146.38,146.35,2.5281]
[1718548289873,3.2077,146.38,146.35,7.5844]
[1718548290088,0.68,146.38,146.36,2.5279]
[1718548291586,3.2076,146.38,146.35,25.2809]
[1718548291780,0.68,146.38,146.35,25.2809]
[1718548292098,3.2076,146.38,146.35,7.584]
[1718548292298,3.2076,146.38,146.35,7.5843]
[1718548292681,8.2629,146.38,146.35,2.528]
[1718548292995,0.68,146.38,146.35,2.528]
[1718548293199,108.263,146.38,146.34,30.7726]
[1718548293376,0.17,146.36,146.33,2.5284]
[1718548293577,3.038,146.36,146.33,2.5284]
[1718548293777,0.17,146.35,146.33,2.5284]
[1718548293979,0.51,146.35,146.33,2.5284]
[1718548294302,0.17,146.34,146.32,22.7577]
[1718548294480,0.51,146.34,146.33,7.5855]
[1718548294685,0.68,146.34,146.33,2.5285]
[1718548294907,0.68,146.34,146.32,22.7577]
[1718548295082,0.68,146.34,146.33,2.5285]
[1718548295707,0.68,146.34,146.31,15.1728]
[1718548295885,0.68,146.34,146.31,22.7592]
[1718548295886,0.17,146.33,146.31,22.7592]
[1718548296089,0.68,146.33,146.32,2.5286]
[1718548296777,0.17,146.32,146.31,25.2884]
[1718548297199,0.34,146.32,146.31,25.2884]
[1718548297395,0.51,146.32,146.31,25.2884]
[1718548298096,0.51,146.32,146.31,7.5863]
[1718548298484,0.51,146.32,146.31,2.5287]
[1718548298904,0.51,146.32,146.31,7.5864]
[1718548300211,0.51,146.32,146.3,23.28287967]
[1718548300212,0.17,146.31,146.3,2.61927967]
[1718548300418,0.68,146.31,146.3,0.09037967]
[1718548302185,3.2088,146.31,146.3,0.09037967]
[1718548302401,25.9686,146.31,146.3,0.09037967]
[1718548302574,13.7565,146.31,146.3,0.09037967]
[1718548302999,31.4586,146.31,146.3,0.09037967]
[1718548303197,25.9686,146.31,146.3,0.09037967]
[1718548303378,31.4586,146.31,146.3,0.09037967]
[1718548303585,13.7565,146.31,146.3,0.09037967]
[1718548303786,31.4586,146.31,146.3,0.09037967]
[1718548304382,76.4586,146.31,146.3,0.09037967]
[1718548304699,96.4586,146.31,146.3,0.09037967]
[1718548305004,90.9686,146.31,146.3,0.09037967]
[1718548305430,20.68,146.31,146.3,0.09037967]
[1718548305904,0.68,146.31,146.3,0.09037967]
[1718548306082,20.68,146.31,146.3,0.09037967]
[1718548307126,23.2088,146.31,146.3,0.09037967]
[1718548307998,0.68,146.31,146.3,0.09037967]
[1718548310524,0.68,146.31,146.3,2.61937967]
[1718548310525,0.34,146.31,146.3,2.61937967]
[1718548310726,0.34,146.31,146.3,0.09037967]
[1718548311608,3.0388,146.31,146.3,0.09037967]
[1718548311925,0.68,146.31,146.3,0.09037967]
[1718548312139,3.2088,146.31,146.3,0.09037967]
[1718548312805,0.68,146.31,146.3,0.09037967]
[1718548313123,3.2088,146.31,146.3,0.09037967]
[1718548313302,0.68,146.31,146.3,0.09037967]
[1718548313698,3.2088,146.31,146.3,0.09037967]
[1718548314324,31.4586,146.31,146.3,0.09037967]
[1718548314511,3.2088,146.31,146.3,0.09037967]
[1718548314930,0.68,146.31,146.3,0.09037967]
[1718548315602,3.2088,146.31,146.3,0.09037967]
[1718548315800,0.68,146.31,146.3,0.09037967]
[1718548316228,0.68,146.31,146.3,2.61937967]
[1718548316429,0.34,146.31,146.3,25.38057967]
[1718548316898,0.34,146.31,146.3,7.67737967]
[1718548317098,20.0,146.34,146.31,2.5287]
[1718548317318,7.5851,146.34,146.3,30.86997967]
[1718548317524,7.5851,146.34,146.3,13.16717967]
[1718548317725,15.1701,146.34,146.3,7.67717967]
[1718548318023,10.1135,146.34,146.3,0.09037967]
[1718548318237,2.5285,146.33,146.3,0.09037967]
[1718548318399,3.2088,146.32,146.3,0.09037967]
[1718548318600,0.17,146.31,146.3,0.09037967]
[1718548318796,0.51,146.32,146.3,0.09037967]
[1718548319029,2.6988,146.31,146.3,0.09037967]
[1718548319228,0.68,146.31,146.3,0.09037967]
[1718548319413,3.2088,146.31,146.3,0.09037967]
[1718548320125,0.68,146.31,146.3,0.09037967]
[1718548320520,15.8531,146.31,146.3,0.09037967]
[1718548320726,21.3431,146.31,146.3,0.09037967]
[1718548320904,13.7565,146.31,146.3,0.09037967]
[1718548321111,31.4586,146.31,146.3,0.09037967]
[1718548322043,0.68,146.31,146.3,0.09037967]
[1718548322428,3.2088,146.31,146.3,0.09037967]
[1718548322633,0.68,146.31,146.3,0.09037967]
[1718548322823,0.68,146.31,146.28,2.5293]
[1718548323029,0.17,146.29,146.28,7.588]
[1718548323325,0.17,146.29,146.28,15.1761]
[1718548323529,0.17,146.29,146.27,0.8739633]
[1718548323747,0.51,146.3,146.29,2.5292]
[1718548323926,0.34,146.3,146.29,25.292]
[1718548324249,5.057,146.33,146.29,7.5874]
[1718548324250,0.17,146.32,146.29,7.5874]
[1718548324455,0.68,146.32,146.29,7.5874]
[1718548324639,9.6312708,146.36,146.33,2.5285]
[1718548324944,7.5842,146.36,146.32,28.248]
[1718548325155,2.528,146.36,146.33,2.5285]
[1718548325497,2.528,146.36,146.32,28.248]
[1718548325498,5.056,146.36,146.32,13.0757]
[1718548325622,25.2803,146.36,146.32,13.0757]
[1718548325946,25.2803,146.36,146.32,13.0758]
[1718548326329,2.5278,146.37,146.33,5.14492845]
[1718548326543,100.0,146.39,146.34,8.0182]
[1718548326544,2.5277,146.38,146.34,8.0182]
[1718548326757,2.5277,146.38,146.34,28.2448]
[1718548326943,7.5835,146.37,146.34,5.49]
[1718548327132,15.167,146.37,146.34,5.49]
[1718548327330,7.5835,146.37,146.34,5.49]
[1718548327650,7.5835,146.37,146.33,13.16342845]
[1718548327855,0.68,146.36,146.33,13.16342845]
[1718548328253,0.68,146.36,146.33,0.08812845]
[1718548328254,8.2641,146.36,146.33,0.08812845]
[1718548328560,8.264,146.36,146.33,0.08812845]
[1718548328750,3.208,146.36,146.33,2.61662845]
[1718548329058,0.68,146.36,146.33,7.67352845]
[1718548329569,0.68,146.36,146.33,13.16362845]
[1718548329778,0.68,146.36,146.34,2.5283]
[1718548329966,3.208,146.36,146.33,2.61652845]
[1718548330155,3.208,146.36,146.33,2.61662845]
[1718548330361,3.208,146.36,146.33,8.10662845]
[1718548330545,0.68,146.36,146.33,13.16362845]
[1718548330956,0.68,146.36,146.33,7.67352845]
[1718548331670,0.68,146.36,146.33,13.16352845]
[1718548331877,0.68,146.36,146.33,20.74902845]
[1718548332045,0.68,146.36,146.34,2.5283]
[1718548332250,0.68,146.36,146.34,7.5849]
[1718548332470,0.68,146.36,146.35,2.5281]
[1718548332994,0.68,146.36,146.34,30.7731]
[1718548333682,0.68,146.36,146.35,2.5281]
[1718548334267,0.68,146.36,146.34,28.2449]
[1718548334268,0.68,146.36,146.34,30.7731]
[1718548334652,0.68,146.36,146.34,13.0749]
[1718548335055,0.68,146.36,146.34,28.2447]
[1718548335276,0.68,146.36,146.34,13.0749]
[1718548335552,0.68,146.36,146.34,28.245]
[1718548335755,0.68,146.36,146.34,13.0749]
[1718548336078,0.17,146.34,146.33,0.08812845]
[1718548336455,0.68,146.34,146.33,0.08812845]
[1718548336680,0.51,146.34,146.33,0.08812845]
[1718548337086,0.68,146.34,146.33,0.08812845]
[1718548338692,0.51,146.34,146.33,20.74912845]
[1718548338872,0.17,146.34,146.33,5.57812845]
[1718548339073,0.34,146.34,146.33,5.57812845]
[1718548339256,0.51,146.34,146.33,5.57812845]
[1718548339461,0.51,146.34,146.33,2.61662845]
[1718548339970,0.51,146.34,146.33,0.08812845]
[1718548340964,0.68,146.34,146.33,0.08812845]
[1718548341384,25.4516,146.35,146.34,99.32]
[1718548341874,15.3389,146.35,146.34,99.32]
[1718548342082,7.7544,146.35,146.34,99.32]
[1718548342457,125.4516,146.35,146.34,99.32]
[1718548342674,102.6981,146.35,146.34,99.32]
[1718548343378,103.2081,146.35,146.34,99.32]
[1718548343896,108.2644,146.35,146.34,99.32]
[1718548344974,103.2081,146.35,146.34,99.32]
[1718548346481,170.9616,146.35,146.34,99.32]
[1718548346663,183.57756929,146.35,146.34,49.07238652]
[1718548346862,244.60756929,146.35,146.34,4.44454571]
[1718548347059,270.85431929,146.35,146.34,4.44454571]
[1718548347279,251.14835649,146.35,146.34,4.571e-05]
[1718548347485,100.0,146.32,146.21,15.0456]
[1718548347676,208.00337345,146.35,146.27,15.9195633]
[1718548347677,42.61596929,146.35,146.27,15.9195633]
[1718548347856,30.0,146.35,146.33,15.1707]
[1718548348058,30.0,146.35,146.34,7.585]
[1718548348261,30.0,146.35,146.34,2.5283]
[1718548348764,30.0,146.35,146.33,7.5852]
[1718548348975,2.528,146.36,146.33,2.5283]
[1718548349175,22.7507,146.37,146.33,2.5283]
[1718548349176,2.5279,146.37,146.33,22.7564]
[1718548349462,7.5836,146.37,146.33,7.5853]
[1718548349882,2.528,146.36,146.33,2.5284]
[1718548350087,25.2785,146.37,146.33,7.5854]
[1718548350274,7.5836,146.37,146.33,7.5854]
[1718548350591,0.17,146.36,146.33,7.5854]
[1718548350794,0.17,146.36,146.33,15.1709]
[1718548351095,2.698,146.36,146.33,2.5284]
[1718548351502,0.34,146.35,146.33,2.5284]
[1718548351684,0.34,146.35,146.33,7.5851]
[1718548351887,0.34,146.35,146.33,2.5284]
[1718548352186,0.34,146.35,146.33,7.5854]
[1718548352579,0.34,146.35,146.33,2.5284]
[1718548352984,0.34,146.35,146.32,25.2861]
[1718548353295,0.34,146.35,146.33,2.5285]
[1718548353595,0.34,146.35,146.33,20.671]
[1718548353799,0.34,146.35,146.34,2.5283]
[1718548353990,0.51,146.35,146.34,2.5283]
[1718548354301,0.51,146.35,146.34,25.2834]
[1718548354599,0.17,146.37,146.34,30.7833]
[1718548354791,0.68,146.37,146.34,30.7833]
[1718548355403,0.68,146.37,146.34,13.0849]
[1718548356009,2.5277,146.38,146.35,2.5281]
[1718548356223,2.5273,146.4,146.37,2.5277]
[1718548356518,15.1639,146.4,146.37,5.5]
[1718548356828,2.5273,146.4,146.38,5.5]
[1718548357107,32.38445368,146.41,146.38,5.5]
[1718548357613,2.5273,146.4,146.38,5.5]
[1718548358516,0.51,146.39,146.38,5.5]
[1718548358805,8.0925,146.39,146.36,5.5]
[1718548359105,3.0375,146.39,146.36,8.0279]
[1718548359481,3.0375,146.39,146.36,5.5]
[1718548359709,3.0375,146.39,146.35,8.028]
[1718548359710,2.5277,146.38,146.35,8.028]
[1718548360280,25.7853,146.39,146.35,8.028]
[1718548360478,25.7853,146.39,146.35,13.0843]
[1718548360789,2.5276,146.38,146.35,8.028]
[1718548361716,0.17,146.38,146.35,13.0843]
[1718548362092,0.17,146.38,146.36,2.5279]
[1718548362292,0.17,146.38,146.35,30.7814]
[1718548362490,0.17,146.38,146.36,2.5279]
[1718548362710,0.17,146.38,146.36,7.5839]
[1718548362876,0.17,146.38,146.36,12.6398]
[1718548363209,0.17,146.38,146.36,5.5]
[1718548363379,0.17,146.38,146.36,8.028]
[1718548363585,0.17,146.38,146.37,25.2782]
[1718548363815,0.17,146.38,146.37,2.5278]
[1718548364685,0.17,146.38,146.36,30.7787]
[1718548365000,0.17,146.38,146.36,13.0835]
[1718548365208,0.17,146.38,146.36,13.0837]
[1718548365492,0.17,146.38,146.36,8.0278]
[1718548365902,0.17,146.38,146.36,2.5279]
[1718548366415,0.17,146.38,146.35,30.7805]
[1718548366910,0.17,146.38,146.35,13.0841]
[1718548367114,2.6977,146.38,146.35,8.028]
[1718548367285,0.17,146.38,146.35,13.0843]
[1718548367480,0.17,146.38,146.36,2.528]
[1718548368490,0.17,146.38,146.36,7.5839]
[1718548370200,0.17,146.38,146.35,15.6126]
[1718548370390,0.17,146.38,146.35,7.5842]
[1718548370590,0.17,146.38,146.36,2.5279]
[1718548370818,0.17,146.38,146.35,22.7533]
[1718548370981,0.17,146.38,146.36,7.5839]
[1718548371493,0.17,146.38,146.35,7.5842]
[1718548371703,107.7532,146.38,146.34,12.6415]
[1718548372003,107.7532,146.38,146.34,15.1697]
[1718548372004,0.51,146.37,146.34,15.1697]
[1718548372188,0.17,146.36,146.34,2.5282]
[1718548372517,2.698,146.36,146.33,7.5853]
[1718548372814,0.51,146.35,146.32,37.803]
[1718548373107,0.51,146.35,146.3,6.5916]
[1718548373108,0.17,146.34,146.3,25.2894]
[1718548373291,113.255,146.34,146.31,2.5288]
[1718548373494,0.51,146.33,146.3,25.2894]
[1718548373717,0.51,146.33,146.3,7.5866]
[1718548374218,0.51,146.33,146.31,2.5287]
[1718548374512,0.51,146.33,146.3,25.2893]
[1718548374685,0.51,146.33,146.3,25.2892]
[1718548374885,2.529,146.31,146.28,15.4285]
[1718548375216,0.17,146.32,146.29,7.5873]
[1718548375387,0.17,146.32,146.29,7.5874]
[1718548375588,0.17,146.32,146.28,17.7048]
[1718548375589,7.7561,146.32,146.28,17.7048]
[1718548375801,0.51,146.31,146.29,2.5291]
[1718548375998,0.51,146.31,146.29,7.5874]
[1718548376198,0.51,146.31,146.3,2.529]
[1718548376687,0.51,146.31,146.29,7.5873]
[1718548377588,0.51,146.31,146.3,2.529]
[1718548377815,0.51,146.31,146.29,15.1747]
[1718548377991,0.68,146.31,146.3,2.529]
[1718548378196,0.51,146.31,146.3,25.2902]
[1718548378500,0.51,146.31,146.28,5.5]
[1718548378501,0.68,146.31,146.29,7.5874]
[1718548378909,0.51,146.31,146.3,15.1741]
[1718548379101,0.51,146.31,146.3,25.2902]
[1718548379495,0.51,146.31,146.29,2.529]
[1718548380292,0.51,146.31,146.29,7.5874]
[1718548380623,0.51,146.31,146.28,20.6757]
[1718548381005,0.51,146.31,146.28,13.0877]
[1718548381417,0.17,146.3,146.27,5.9328633]
[1718548381714,0.17,146.3,146.28,2.5293]
[1718548381916,0.17,146.3,146.27,26.1689633]
[1718548382415,0.17,146.3,146.28,2.5293]
[1718548382826,2.699,146.3,146.27,8.4622633]
[1718548383047,102.6993,146.28,146.27,0.8739633]
[1718548383321,113.768,146.28,146.27,0.8739633]
[1718548383520,0.68,146.28,146.27,0.8739633]
[1718548384507,3.2093,146.28,146.27,0.8739633]
[1718548384724,8.268,146.28,146.27,0.8739633]
[1718548384929,3.2093,146.28,146.27,0.8739633]
[1718548385137,8.268,146.28,146.27,0.8739633]
[1718548385803,15.8561,146.28,146.27,0.8739633]
[1718548386104,8.268,146.28,146.27,0.8739633]
[1718548386305,108.268,146.28,146.27,0.8739633]
[1718548386505,0.68,146.28,146.27,0.8739633]
[1718548386933,0.51,146.28,146.27,0.8739633]
[1718548387108,102.5291,146.3,146.27,3.4034633]
[1718548387426,102.529,146.3,146.27,0.8739633]
[1718548387627,2.529,146.3,146.27,0.8739633]
[1718548387834,15.1742,146.3,146.27,0.8739633]
[1718548388005,7.5872,146.3,146.27,0.8739633]
[1718548388527,5.2285,146.29,146.27,0.8739633]
[1718548388725,7.928,146.28,146.27,0.8739633]
[1718548388920,0.51,146.28,146.27,0.8739633]
[1718548389519,0.68,146.28,146.27,0.8739633]
[1718548390038,3.2093,146.28,146.27,0.8739633]
[1718548390214,0.68,146.28,146.27,0.8739633]
[1718548391337,0.51,146.28,146.27,0.8739633]
[1718548392039,0.68,146.28,146.27,0.8739633]
[1718548392722,0.51,146.28,146.27,0.8739633]
[1718548393841,0.68,146.28,146.27,0.8739633]
[1718548394140,2.82923779,146.28,146.27,0.8739633]
[1718548394347,3.16923779,146.28,146.27,0.8739633]
[1718548394526,8.22793779,146.28,146.27,0.8739633]
[1718548394841,125.93353779,146.28,146.27,0.8739633]
[1718548395440,170.93353779,146.28,146.27,0.8739633]
[1718548395751,176.43353779,146.28,146.27,0.8739633]
[1718548396246,176.43353779,146.28,146.19,7.5926]
[1718548396247,107.5904,146.24,146.19,7.5926]
[1718548396445,3.2102,146.23,146.2,8.0307]
[1718548396634,0.51,146.23,146.21,22.7749]
[1718548396839,0.17,146.23,146.22,2.5304]
[1718548397447,0.17,146.23,146.21,30.8053]
[1718548397827,0.17,146.23,146.21,13.0914]
[1718548398028,2.7003,146.23,146.2,8.0307]
[1718548398442,2.7002,146.23,146.2,8.0307]
[1718548398748,0.17,146.23,146.2,8.0307]
[1718548398945,0.17,146.23,146.2,13.0922]
[1718548399554,0.17,146.23,146.21,2.5306]
[1718548399736,0.17,146.23,146.21,8.0306]
[1718548400056,0.17,146.23,146.17,15.3202]
[1718548400237,0.17,146.23,146.21,8.0306]
[1718548400631,0.17,146.23,146.21,2.5306]
[1718548400950,0.17,146.23,146.21,2.5304]
[1718548401127,2.7003,146.23,146.2,8.0307]
[1718548401527,0.34,146.22,146.19,7.5925]
[1718548401747,0.34,146.21,146.19,18.1545]
[1718548402047,0.34,146.21,146.19,13.0925]
[1718548402459,0.34,146.21,146.18,5.062]
[1718548402646,0.34,146.21,146.14,5.15164303]
[1718548402647,2.7011,146.18,146.14,5.15164303]
[1718548402830,2.7011,146.18,146.15,2.5316]
[1718548402831,0.51,146.17,146.15,2.5316]
[1718548403029,0.51,146.17,146.14,0.08824303]
[1718548403030,3.0414,146.17,146.14,0.08824303]
[1718548403333,0.51,146.17,146.15,2.5316]
[1718548403534,0.51,146.17,146.14,23.31044303]
[1718548403535,0.51,146.17,146.14,28.37384303]
[1718548403738,0.51,146.17,146.15,2.5315]
[1718548404051,0.51,146.17,146.15,5.5]
[1718548404228,0.51,146.17,146.14,7.68354303]
[1718548404430,0.51,146.17,146.15,2.5316]
[1718548404630,0.51,146.17,146.14,30.90594303]
[1718548404949,0.51,146.17,146.14,13.18344303]
[1718548405148,0.51,146.17,146.14,18.24714303]
[1718548405355,0.51,146.17,146.14,8.11994303]
[1718548405541,0.51,146.17,146.14,20.77884303]
[1718548405740,0.51,146.17,146.15,2.5315]
[1718548405943,0.51,146.17,146.14,28.37424303]
[1718548406132,22.7793,146.19,146.15,2.5315]
[1718548406335,0.34,146.18,146.16,7.5943]
[1718548406649,122.7777,146.2,146.16,2.5314]
[1718548406839,125.3086,146.2,146.16,13.0943]
[1718548407247,22.7777,146.2,146.16,7.5943]
[1718548407455,2.5312,146.18,146.15,2.5315]
[1718548407633,25.3096,146.19,146.15,20.6896]
[1718548407833,25.3096,146.19,146.15,13.0947]
[1718548407834,2.5311,146.18,146.15,13.0947]
[1718548408042,25.3097,146.19,146.15,13.0947]
[1718548408352,0.68,146.18,146.15,28.2846]
[1718548408658,0.68,146.18,146.15,30.8159]
[1718548409436,0.68,146.18,146.15,13.0945]
[1718548409634,0.68,146.18,146.14,0.08824303]
[1718548409861,10.2965,146.15,146.14,0.08824303]
[1718548410066,18.4013,146.15,146.14,0.08824303]
[1718548410356,8.2748,146.15,146.14,0.08824303]
[1718548410570,3.2116,146.15,146.14,0.08824303]
[1718548411148,25.9962,146.15,146.14,0.08824303]
[1718548411341,8.2748,146.15,146.14,0.08824303]
[1718548411528,25.9962,146.15,146.14,0.08824303]
[1718548411753,0.68,146.15,146.14,0.08824303]
[1718548411952,7.10248567,146.2,146.14,0.08824303]
[1718548411953,0.17,146.19,146.14,0.08824303]
[1718548412263,7.5943,146.16,146.15,0.08823699]
[1718548412433,3.0414,146.16,146.15,0.08823699]
[1718548412633,3.2114,146.16,146.15,0.08823699]
[1718548412859,25.9945,146.16,146.15,0.08823699]
[1718548413868,0.59176241,146.16,146.13,21.5656633]
[1718548414055,0.17,146.15,146.13,13.9697633]
[1718548414250,3.0414,146.16,146.13,8.9058633]
[1718548414562,0.51,146.16,146.13,13.9697633]
[1718548414763,0.17,146.15,146.13,6.3739633]
[1718548415060,3.0417,146.15,146.13,0.8739633]
[1718548415638,0.34,146.15,146.13,3.4058633]
[1718548415861,7.5941,146.17,146.13,19.0336633]
[1718548416066,7.5935,146.18,146.15,2.5316]
[1718548416363,7.5929,146.19,146.15,20.6895]
[1718548416546,7.5921,146.21,146.17,10.5624]
[1718548416748,7.5921,146.21,146.18,8.0311]
[1718548416970,17.21610915,146.23,146.18,10.562]
[1718548417141,22.774,146.22,146.18,13.093]
[1718548417462,2.5304,146.22,146.19,2.5309]
[1718548417646,7.5912,146.22,146.19,2.5309]
[1718548417848,7.09480915,146.23,146.16,5.5]
[1718548418167,2.5304,146.22,146.2,5.5]
[1718548418338,2.5303,146.23,146.2,8.0307]
[1718548418537,7.5912,146.22,146.18,25.3101]
[1718548418760,7.5912,146.22,146.19,8.0309]
[1718548418965,7.5912,146.22,146.19,5.5]
[1718548419166,15.1806,146.24,146.2,2.5307]
[1718548419336,2.5302,146.23,146.2,2.5307]
[1718548419542,2.5304,146.22,146.19,8.0308]
[1718548419963,7.5912,146.22,146.19,2.5309]
[1718548420162,2.5304,146.22,146.19,2.5309]
[1718548420369,22.7725,146.23,146.19,7.5927]
[1718548420559,3.0404,146.22,146.19,7.5927]
[1718548420866,0.51,146.22,146.2,2.5307]
[1718548421066,0.17,146.24,146.21,7.5916]
[1718548421248,0.68,146.24,146.21,7.5917]
[1718548421449,3.2101,146.24,146.21,7.5917]
[1718548421648,3.2101,146.24,146.21,2.5305]
[1718548422153,3.2101,146.24,146.2,22.7765]
[1718548422154,100.0,146.29,146.22,5.5]
[1718548422349,22.7679,146.26,146.22,13.0911]
[1718548422575,2.5299,146.25,146.22,13.0911]
[1718548422877,2.5299,146.25,146.22,2.5303]
[1718548423045,7.5897,146.25,146.22,8.0303]
[1718548423244,15.1794,146.25,146.22,5.5]
[1718548423439,2.53,146.24,146.22,5.5]
[1718548423672,2.53,146.24,146.21,8.0304]
[1718548424162,12.6506,146.24,146.2,7.5919]
[1718548424342,15.1808,146.24,146.21,5.5]
[1718548424544,2.5302,146.24,146.21,8.0305]
[1718548424945,0.17,146.24,146.21,13.0917]
[1718548425146,3.2101,146.24,146.21,8.0305]
[1718548427071,0.68,146.24,146.21,13.0916]
[1718548427256,3.21,146.24,146.21,13.0916]
[1718548427654,2.5303,146.23,146.2,2.5307]
[1718548427851,25.9812,146.24,146.2,13.0922]
[1718548428052,2.5302,146.23,146.2,8.0307]
[1718548428453,3.2102,146.24,146.21,2.5306]
[1718548428682,3.2102,146.24,146.19,16.381]
[1718548428683,200.68,146.24,146.16,15.2576]
[1718548428870,12.8231,146.21,146.17,8.0311]
[1718548429043,0.34,146.2,146.17,5.0624]
[1718548429242,0.34,146.2,146.18,7.5932]
[1718548429552,0.34,146.21,146.18,17.7175]
[1718548429867,0.34,146.21,146.18,15.1865]
[1718548430063,0.34,146.21,146.19,2.5309]
[1718548430452,0.34,146.21,146.18,13.0931]
[1718548430757,0.34,146.21,146.18,18.1554]
[1718548430961,0.34,146.21,146.18,20.6863]
[1718548431153,0.34,146.21,146.19,2.5308]
[1718548431365,0.34,146.21,146.18,30.8106]
[1718548431545,0.34,146.21,146.19,2.5309]
[1718548431745,22.7697,146.25,146.21,2.5306]
[1718548431992,2.5302,146.23,146.19,15.1853]
[1718548432146,2.5301,146.24,146.21,5.5]
[1718548432347,2.5302,146.24,146.21,8.0305]
[1718548432545,105.5,146.26,146.16,15.2576]
[1718548432746,22.7729,146.23,146.19,8.0308]
[1718548432993,2.5303,146.23,146.2,2.5307]
[1718548433550,0.17,146.22,146.2,7.5922]
[1718548433755,0.68,146.23,146.2,13.0922]
[1718548434474,0.34,146.23,146.21,7.5917]
[1718548434783,100.0,146.26,146.22,5.5]
[1718548434784,7.5893,146.26,146.22,5.5]
[1718548434983,2.5298,146.26,146.23,8.0302]
[1718548435173,2.5298,146.26,146.23,13.0907]
[1718548435473,7.5893,146.26,146.23,5.5]
[1718548435680,7.5897,146.25,146.21,25.305]
[1718548435888,7.5897,146.25,146.22,2.5304]
[1718548436178,3.04,146.24,146.21,8.0304]
[1718548436655,3.04,146.24,146.21,13.0916]
[1718548436849,3.0401,146.24,146.21,13.0916]
[1718548437051,0.51,146.24,146.21,13.0916]
[1718548437352,3.0401,146.24,146.21,8.0304]
[1718548437555,8.1003,146.24,146.21,8.0304]
[1718548437855,8.1003,146.24,146.17,2.0]
[1718548437856,2.5304,146.22,146.19,13.0926]
[1718548438078,25.4735,146.23,146.19,13.0926]
[1718548438272,0.34,146.22,146.19,13.0926]
[1718548438769,0.34,146.22,146.2,2.5307]
[1718548439085,0.34,146.22,146.2,7.5921]
[1718548439453,0.34,146.22,146.2,2.5307]
[1718548439647,2.8704,146.22,146.19,13.0924]
[1718548439951,0.34,146.22,146.21,2.5306]
[1718548440165,0.51,146.22,146.2,15.1843]
[1718548440363,0.34,146.22,146.2,2.5306]
[1718548440857,0.34,146.22,146.19,25.3085]
[1718548441577,0.34,146.22,146.19,7.5924]
[1718548441784,20.34,146.22,146.19,7.5924]
[1718548441951,22.8704,146.22,146.19,7.5924]
[1718548442366,0.17,146.21,146.18,2.531]
[1718548442564,2.5308,146.2,146.17,4.5311]
[1718548442768,20.0,146.2,146.17,15.0936]
[1718548442976,0.34,146.19,146.17,2.0]
[1718548443288,2.871,146.19,146.17,2.0]
[1718548443455,27.9329,146.19,146.17,2.0]
[1718548443655,3.0411,146.18,146.17,2.0]
[1718548443873,23.2111,146.18,146.17,2.0]
[1718548444192,20.68,146.18,146.17,2.0]
[1718548444856,0.68,146.18,146.17,2.0]
[1718548445865,3.2111,146.18,146.17,2.0]
[1718548446193,20.68,146.18,146.17,2.0]